Cogmind - Beta 16 @@@ ROGUE MODE // 2025.12.27 @ 11:17:38 Player: EuleBlut Result: Destroyed by LK-EWP(R) with Subdweller Laser Performance ------------- Evolutions (0) 0 Regions Visited (2) 400 Robots Destroyed (16) 80 Value Destroyed (365) 365 Prototype IDs (0) 0 Alien Tech Used (0) 0 Bonus (0) 0 TOTAL SCORE: 845 Bonus ------- None Cogmind --------- Core Integrity 0/250 Matter 291/300 Energy 240/250 System Corruption 0% Temperature Cool (6) Movement Rolling (200) Ox8 Location -10/Subcaves Parts ------- > --- POWER (1) -------- Ion Engine > --- PROPULSION (2) --- Wheel > --- UTILITY (2) ------ Huge Storage Unit ECM Suite > --- WEAPON (2) ------- Medium Laser > --- INVENTORY (25) --- Light Ion Engine Light Ion Engine Light Ion Engine Wheel Compact Wheel Compact Wheel Compact Wheel Heat Sink Improved Heat Sink ECM Suite Subdweller Beam Cannon Datajack Peak State ------------ > --- POWER ------------ Light Ion Engine > --- PROPULSION ------- Wheel Compact Wheel > --- UTILITY ---------- Huge Storage Unit ECM Suite > --- WEAPON ----------- Assault Rifle Assault Rifle > --- INVENTORY -------- Light Ion Engine Light Ion Engine Light Ion Engine Wheel Compact Wheel Improved Heat Sink Medium Laser Datajack [Rating: 8] Favorites ----------- Power Light Ion Engine Engine Light Ion Engine Propulsion Wheel Wheel Wheel Utility Huge Storage Unit Device ECM Suite Storage Huge Storage Unit Processor Transport Network Coupler Weapon Assault Rifle Energy Gun Medium Laser Ballistic Gun Assault Rifle Build | -11 -10 -10 ------- Run | Yrd Mat Sub Slots Evolved . | . . . Power . | . . . Propulsion . | . . . Utility . | . . . Weapon . | . . . Parts Attached 16 | 6 10 . Power 3 | 1 2 . Engine 3 | 1 2 . Core . | . . . Reactor . | . . . Propulsion 5 | 2 3 . Treads . | . . . Leg . | . . . Wheel 5 | 2 3 . Hover . | . . . Flight . | . . . Utility 4 | 1 3 . Device 1 | . 1 . Storage 2 | 1 1 . Processor 1 | . 1 . Hackware . | . . . Protection . | . . . Artifact . | . . . Weapon 4 | 2 2 . Energy Gun 2 | 1 1 . Energy Cannon . | . . . Ballistic Gun 2 | 1 1 . Ballistic Cannon . | . . . Launcher . | . . . Special Weapon . | . . . Impact Weapon . | . . . Slashing Weapon . | . . . Piercing Weapon . | . . . Special Melee Weapon . | . . . Unidentified Prototypes . | . . . Parts Lost 9 | . 7 2 Power 2 | . 2 . Propulsion 4 | . 3 1 Utility . | . . . Weapon 3 | . 2 1 Highest Loss Streak 3 | . 3 2 To Critical Strikes . | . . . Average Backups 7 | 2 7 12 Power 2 | . 2 3 Propulsion 1 | . 1 4 Utility 1 | . 1 3 Weapon . | . . 1 Tool/Special . | . . . Unused Backups 12 | . . 12 Power 3 | . . 3 Propulsion 4 | . . 4 Utility 3 | . . 3 Weapon 1 | . . 1 Tool/Special 1 | . . 1 Average Slot Usage (%) 92 | . 92 97 Engine 13 | . 13 14 Wheel 27 | . 27 26 Device 3 | . 2 8 Storage 14 | . 14 14 Processor 4 | . 4 5 Energy Gun 3 | . 2 14 Ballistic Gun 24 | . 25 12 Peak Build Rating 8 | 6 8 8 Average Rating 7 | 4 7 7 On Entrance 4 | . 6 8 Avg Prop Armor Cover (%) . | . . . Naked Turns . | . . . Heaviest Build 91 | 12 89 91 Greatest Support 26 | 20 26 20 Greatest Overweight (x) 9 | 1 4 9 Average Overweight (x) 2 | . 2 4 Largest Inventory Capacity 25 | 8 25 25 Average Capacity 20 | 6 20 25 Most Carried 13 | 5 13 13 Average Carried 7 | 2 7 12 Final Capacity 25 | 8 25 25 Final Carried 13 | 3 13 12 Class Distribution -------------------- 100% | Mutant Dominant Class ---------------- Mutant | -10/Materials Mutant | -10/Subcaves Resources | -11 -10 -10 ----------- Run | Yrd Mat Sub Matter Collected 591 | 235 356 . Remotely . | . . . Salvage Created 504 | 75 429 . Parts 34 | 3 31 . Haulers Intercepted . | . . . Recyclers Shooed 1 | . 1 . Parts Field Recycled . | . . . Retrieved Matter . | . . . Parts Self-Destructed . | . . . Prevented . | . . . Parts Restored . | . . . Kills | -11 -10 -10 ------- Run | Yrd Mat Sub Combat Hostiles Destroyed 13 | . 13 . Guns 13 | . 13 . Classes Destroyed 6 | 1 5 . Builder 1 | . 1 . Tunneler 1 | . 1 . Recycler 1 | 1 . . Swarmer 6 | . 6 . Grunt 6 | . 6 . Subdweller 1 | . 1 . Best Kill Streak 4 | 1 4 . Combat Bots Only 4 | . 4 . Max Kills in Single Turn 2 | 1 2 . Gunslinging 1 | . 1 . Exploded . | . . . Melee . | . . . Uniques/NPCs Destroyed . | . . . Combat | -11 -10 -10 -------- Run | Yrd Mat Sub Hostile Shots Fired 110 | . 101 9 Missed 40 | . 37 3 Hits 70 | . 64 6 Projectile 70 | . 64 6 Critical Strikes 2 | . 2 . Damage Taken 875 | . 755 120 Core 264 | . 221 43 Absorbed by Shields . | . . . Core Remaining (%) 100 | 100 . . Volleys Fired 62 | 2 57 3 Largest 2 | 2 2 2 Hottest 70 | 60 70 70 Shots Fired 118 | 4 110 4 Gun 118 | 4 110 4 Cannon . | . . . Launcher . | . . . Special . | . . . Kinetic 90 | 2 87 1 Thermal 11 | . 8 3 Explosive . | . . . Electromagnetic 17 | 2 15 . Robot Hit Streak 11 | 3 11 2 Robot Miss Streak 8 | . 8 1 Penetration Max . | . . . Secondary Targets 5 | . 5 . Max Gunslinging Chain 1 | . 1 . Shots Hit Robots 60 | 3 55 2 Core Hits 27 | 1 25 1 Critical Kills . | . . . Critical Parts Destroyed . | . . . Critical Strikes . | . . . Melee Attacks . | . . . Impact . | . . . Slashing . | . . . Piercing . | . . . Sneak Attacks . | . . . Combat Hostiles . | . . . Follow-up Attacks . | . . . Damage Inflicted 884 | 42 816 26 Guns 826 | 42 758 26 Cannons . | . . . Explosions 58 | . 58 . Melee . | . . . Ramming . | . . . Kinetic 642 | 27 601 14 Thermal 145 | . 133 12 Explosive . | . . . Electromagnetic 97 | 15 82 . Impact . | . . . Slashing . | . . . Piercing . | . . . Highest Corruption . | . . . Average Corruption . | . . . Corruption Purged . | . . . Corruption Blocked . | . . . Overload Shots . | . . . Overflow Damage . | . . . Projectiles . | . . . Explosions . | . . . Melee . | . . . Knockbacks . | . . . Impact . | . . . Kinetic . | . . . Secondary . | . . . Self-Inflicted Damage . | . . . Shots . | . . . Rammed . | . . . Targets Rammed . | . . . Kicked . | . . . Crushed . | . . . Highest Temperature 150 | 20 150 . Average Temperature 72 | 20 74 . Received Heat Transfer 342 | . 309 33 Siege Activations . | . . . Martial Activations . | . . . Shielding Activations . | . . . Robots Disrupted . | . . . Combat Hostiles . | . . . Robots Corrupted . | . . . Combat Hostiles . | . . . Parts Fried . | . . . Impact Corruptions . | . . . Robots Melted . | . . . Combat Hostiles . | . . . Parts Melted 1 | . 1 . Heat Transferred 359 | . 322 37 Parts Sabotaged . | . . . Parts Stolen . | . . . Parts Stripped . | . . . Power Chain Reactions 1 | . 1 . Alert | -11 -10 -10 ------- Run | Yrd Mat Sub Maximum Alert Level . | . . . Low Security (%) 100 | 100 100 . Level 1 . | . . . Level 2 . | . . . Level 3 . | . . . Level 4 . | . . . Level 5 . | . . . High Security . | . . . Max Security . | . . . Peak Influence 106 | 5 106 . Initial . | . . . Average 22 | . 23 . Influence Increases 357 | 5 352 . Destroy 0b10 Robot/C 240 | . 240 . Destroy 0b10 Robot/NC 15 | 5 10 . Destroy Leader 40 | . 40 . Disable Machine 45 | . 45 . Destroy Structure 2 | . 2 . Lose Combat Pursuer 15 | . 15 . Influence Decreases 357 | 5 352 . Time Decay 325 | 5 320 . Lost Part 32 | . 32 . Squads Dispatched 2 | . 2 . Investigation 2 | . 2 . Extermination . | . . . Reinforcement . | . . . Assault . | . . . Garrison . | . . . Intercept . | . . . Searches Triggered . | . . . Construction Impeded . | . . . Haulers Reinforced . | . . . Active Scanning Responses . | . . . Cargo Convoy Interrupts . | . . . Stealth | -11 -10 -10 --------- Run | Yrd Mat Sub Distress Signals 1 | . 1 . Communications Jammed . | . . . Distress Signals . | . . . Times Spotted 24 | . 21 3 Peak Tracking Total 5 | . 5 3 Tactical Retreats 1 | . 1 . Traps | -11 -10 -10 ------- Run | Yrd Mat Sub Traps Triggered 2 | . 2 . Indirectly . | . . . Trap Hack Attempts . | . . . Triggered . | . . . Disarmed . | . . . Reprogrammed . | . . . Reused . | . . . Traps Extracted . | . . . Installed . | . . . Triggered . | . . . Machines | -11 -10 -10 ---------- Run | Yrd Mat Sub Machines Disabled 3 | . 3 . Max in Single Turn 1 | . 1 . Machines Repaired . | . . . Machines Dismantled . | . . . Machines Sabotaged . | . . . Overloaded Fab Kills . | . . . Hacking | -11 -10 -10 --------- Run | Yrd Mat Sub Machines Accessed 1 | . 1 . Terminals 1 | . 1 . Fabricators . | . . . Repair Stations . | . . . Recycling Units . | . . . Scanalyzers . | . . . Garrison Access . | . . . Total Hacks 2 | . 2 . Successful 1 | . 1 . Failed 1 | . 1 . Catastrophic . | . . . Database Lockouts . | . . . Manual 2 | . 2 . Terminals 2 | . 2 . Fabricators . | . . . Repair Stations . | . . . Recycling Units . | . . . Scanalyzers . | . . . Garrison Access . | . . . Terminal Hacks 1 | . 1 . Recall Investigation 1 | . 1 . Fabricator Hacks . | . . . Repair Station Hacks . | . . . Recycling Unit Hacks . | . . . Scanalyzer . | . . . Garrison Access Hacks . | . . . Unauthorized Hacks . | . . . Terminals . | . . . Fabricators . | . . . Repair Stations . | . . . Recycling Units . | . . . Scanalyzers . | . . . Garrison Access . | . . . Data Cores Recovered . | . . . Used . | . . . Hacking Detections 1 | . 1 . Full Trace Events . | . . . Feedback Events . | . . . Feedback Blocked . | . . . Robot Schematics Acquired . | . . . Robots Built . | . . . Authchips . | . . . Time . | . . . Total Robot Build Rating . | . . . Part Schematics Acquired . | . . . Parts Built . | . . . Authchips . | . . . Time . | . . . Total Part Build Rating . | . . . Part Studies Acquired . | . . . Parts Repaired . | . . . Time . | . . . Parts Recycled . | . . . Recycled Matter . | . . . Retrieved Matter . | . . . Retrieved Components . | . . . Parts Scanalyzed . | . . . Part Schematics Acquired . | . . . Parts Damaged . | . . . Bothacking | -11 -10 -10 ------------ Run | Yrd Mat Sub Used RIF Installer . | . . . Robots Hacked . | . . . Non-combat . | . . . Combat . | . . . Robot Hacks Applied . | . . . Relay Couplers Released . | . . . Fabnet Peak Effective % . | . . . Robots Rewired . | . . . Allies Hacked . | . . . Hacks Repelled . | . . . Allies | -11 -10 -10 -------- Run | Yrd Mat Sub Total Allies . | . . . Largest Group . | . . . Highest-Rated Group . | . . . Highest-Rated Ally . | . . . Total Orders . | . . . Ally Attacks . | . . . Total Damage . | . . . Kills . | . . . Allies Corrupted . | . . . Allies Melted . | . . . Intel | -11 -10 -10 ------- Run | Yrd Mat Sub Active Infowar (turns) 805 | . 711 94 T.N.C. 475 | . 444 31 ECM 330 | . 267 63 Robot Analysis Total . | . . . Derelict Logs Recovered . | . . . Drone Launches . | . . . Drone Recoveries . | . . . Exploration | -11 -10 -10 ------------- Run | Yrd Mat Sub Turns Passed 1410 | 52 1263 95 Spaces Moved 966 | 45 859 62 Core 13 | 13 . . Treads . | . . . Legs . | . . . Wheels 953 | 32 859 62 Hover . | . . . Flight . | . . . Fastest Speed 50 | 50 80 140 Average Speed 122 | 73 123 141 Slowest Speed 215 | 100 140 215 Overloaded Moves . | . . . Propulsion Burnouts . | . . . Robots Hopped . | . . . Potential Cave-ins . | . . . Cave-ins Triggered . | . . . Exploration Rate (%) 34 | 3 94 5 Regions Visited 2 Branch Regions 1 Pre-discovered Areas . | . . . Known Exits Taken . | . . . Unknown Exits Taken 2 | 1 1 . Scrap Searched . | . . . Spaces Dug . | . . . Terrain Destroyed 1 | . 1 . Melee . | . . . Projectile . | . . . AOE 1 | . 1 . Terrain Rammed . | . . . Walls Destroyed . | . . . Machines Disabled . | . . . Actions | -11 -10 -10 --------- Run | Yrd Mat Sub Total 1073 | 58 948 67 Wait 3 | . 3 . Move 964 | 44 858 62 Hop . | . . . Pick Up 25 | 6 19 . Fast Attach 3 | 3 . . Attach 12 | 3 8 1 Detach 1 | . . 1 Swap 2 | . 2 . Drop 1 | . 1 . Fire 62 | 2 57 3 Melee . | . . . Ram . | . . . Kick . | . . . Crush . | . . . Escape Stasis . | . . . Rewire . | . . . Trap . | . . . Miscellaneous . | . . . Route ------- -11/Scrapyard -10/Materials (discovered 5 exits: [*Mat x3] / [*Min] / [*Sub]) -10/Subcaves History --------- Turn | Location | Event 11 | -11/Scrapyard | Discovered new exit (range 16) 53 | -11/Scrapyard | Entered Materials 110 | -10/Materials | Core integrity fell below 50% 144 | -10/Materials | Lost 3 parts (1p1n1w) 148 | -10/Materials | Discovered new exit (range 14) 304 | -10/Materials | Build established: Mutant 321 | -10/Materials | Discovered new exit (range 5) 681 | -10/Materials | Discovered new exit (range 11) 698 | -10/Materials | Discovered new exit (range 11) 991 | -10/Materials | Discovered new exit (range 4) 1053 | -10/Materials | Derelicts attacked the area 1171 | -10/Materials | Core integrity fell below 20% 1316 | -10/Materials | Entered Subcaves 1317 | -10/Subcaves | Approached by a straggling Scientist 1411 | -10/Subcaves | Destroyed by LK-EWP(R) with Subdweller Laser Last Messages --------------- K-01 Serf collects debris. Acquired Sub. Beam Cannon. K-01 Serf collects debris. Acquired Com. Wheel. LOCATION=UNKNOWN AMBIENT_HEAT=-10 GOAL=ESCAPE W4-RGV(c): "Thank the algorithms! I was beginning to lose hope I'd never make it past all the Subs lurking out here." W4-RGV(c): "Hey, let me tag along and I can get us both out of this nasty situation. At least I think I can... The group I got separated from was talking about a shortcut back to the UFD." Discarded Transport Network Coupler. W4-RGV(c): "I think it's somewhere southeast of here" Wheel destroyed. Assault Rifle destroyed. Map ----- +----------------------------------------------------+ | ???????????????????????????????????????????????? | | ???????????????????????????????????????????????? | | ???????????????????????????????????????????????? | | ???????????????????????????????????????????????? | | ???????????????????????????????????????????????? | | ???????????????????????????????????????????????? | | ???????????????????????????????????????????????? | | ???????????????????????????????????????????????? | | ???????????????????????????????????????????????? | | ???????????????????????????????????????????????? | | ???????????????????????????????????????????????? | | ???????????????????????????????????????????????? | | ???????????????????????????????????????????????? | | ??????????????????????????????# ???????????????? | | ?????????????????????????????# ??????????????? | | ????????????????????????????? #?????????????? | | ????????????????????????????? ##???????? ???? | | ?????????????????##??????????#""" #####??? ??? | | ???????????????### ?????????? " #??? ??? | | ???????????????# ????????? " ???"" #??? | | ???????????????# ?????????# " ?????#""#??? | | ???????????????# ?????####""" #?????##" ??? | | ??????????????## ?????# #??????#"""##?? | | ??????????????# ?##### #??????###"""#?? | | ??????????????# ## # # ##?###### ##?? | | ???????????????????# @ R ### ##"" ##? | | ???????????????????# ####"# # # " ## | | ???????????????????# #???###"" " """"" # | | ???????????????????##??????##""" " " # | | ???????????????????????????#" """ ### " # | | ???????????????????????????# ##?#" " # | | ???????????????????????????# ####?##"" " # | | ???????????????????????????# #????#""" ## | | ???????????????????????????## #?### """ #? | | ????????????????????????????## ##"" "" #? | | ?????????????????????????????### # #? | | ???????????????????????????????# ### #? | | ???????????????????????????????# #?## #? | | ??????????????????????????????? ##??## #? | | ??????????????????????????????? #????## #? | | ???????????????????????????????# #?????# #? | | ????????????????????????????????###?????# #? | | ????????????????????????????????????????# #? | | ????????????????????????????????????????## # | | ?????????????????????????????????????????#### # | | ????????????????????????????????????????????# ## | | ????????????????????????????????????????????###? | | ???????????????????????????????????????????????? | | ???????????????????????????????????????????????? | | ???????????????????????????????????????????????? | +----------------------------------------------------+ Best States ------------- Heat Dissipation 25 Energy Generation 10 Energy Capacity 250 Matter Stores 300 Matter Capacity 300 Sight Range 16 Terrain Scan Density 10 ECM Strength 1 Evasion (%) 50 Item Schematics ----------------- None Robot Schematics ------------------ None Fabricated ------------ Nothing Repaired ---------- Nothing Studied --------- None Alien Tech Used ----------------- None Achievements -------------- None Challenges ------------ None Game ------ Seed AngularGravjetBotcube Manual? 0 Play Time 00:10:44 Cumulative 14.4 hours Start 2025.12.27 @ 11:07:36 End 2025.12.27 @ 11:17:38 Sessions 1 Manual Loads 0 Difficulty Rogue Special Mode None Game No. 41 Rogue 40 Adventurer 0 Explorer 1 Win Type - Total 0 Types 0/0/0/0/0/0/0/0/0/0 Lore% 8 Gallery% 16 Achievement% 13 Wizard Run 0 Options --------- Layout 1 ASCII 0 Keyboard 0 Movement Mouse Keybinds 0 Fullscreen 2 Font 24/Smallcaps Map View 50x35 Zoom Use 0% Tactical HUD 0 Map Filters NONE Filters NONE Steam 1 RUN: 4a150953-5e8f-4c47-90a5-0604a531b512